bitfinex/quotes_ETHUSD_20241105
["timestamp","ask_amount","ask_price","bid_price","bid_amount"]
[1730806494396,8.99027,2441.6,2441.2,4.66024768]
[1730806494601,4.09589,2441.5,2441.2,0.56390768]
[1730806495203,4.89454,2441.6,2441.2,4.66013768]
[1730806495403,4.97498898,2441.6,2441.2,4.66013768]
[1730806496320,4.09594,2441.5,2441.2,0.56390768]
[1730806497388,4.17638898,2441.5,2441.2,0.56390768]
[1730806498316,8.27233898,2441.5,2441.2,0.56390768]
[1730806498491,4.09594,2441.5,2441.2,0.56390768]
[1730806498892,8.19187,2441.5,2441.2,0.56390768]
[1730806499794,4.09593,2441.5,2441.2,0.56390768]
[1730806500240,4.89449,2441.6,2441.2,4.66023768]
[1730806500401,0.01,2441.6,2441.3,5.42887077]
[1730806500598,4.93468898,2441.8,2441.4,4.09596]
[1730806500845,4.09567,2441.6,2441.4,0.95248308]
[1730806501147,4.09567,2441.6,2441.3,0.4571]
[1730806501438,4.09567,2441.6,2441.2,7.0963]
[1730806501639,4.09586,2441.5,2441.2,3.0]
[1730806501849,4.09586,2441.5,2441.1,0.4571]
[1730806501850,4.09602,2441.4,2441.1,0.4571]
[1730806502042,4.88756,2441.5,2441.1,4.55361]
[1730806502349,4.88756,2441.5,2441.1,5.49876509]
[1730806503548,0.7917,2441.5,2441.1,1.40225509]
[1730806503755,4.8876,2441.5,2441.1,5.49873509]
[1730806504106,1.71668015,2441.7,2441.1,2.83976658]
[1730806504446,4.10532,2441.9,2441.5,0.4571]
[1730806504645,4.09535,2441.8,2441.5,0.4571]
[1730806504822,0.01,2441.9,2441.6,4.14530047]
[1730806505018,4.96830898,2442.0,2441.6,4.14530047]
[1730806505225,4.10519,2441.9,2441.5,4.55286]
[1730806505419,0.7928,2442.0,2441.5,1.75754515]
[1730806505624,0.01,2442.1,2441.8,4.09527]
[1730806505822,4.86571,2442.2,2441.8,4.55237]
[1730806506023,4.86571,2442.2,2441.9,0.04957528]
[1730806506754,0.771,2442.2,2441.9,0.04957528]
[1730806506905,4.86567,2442.2,2441.9,0.04957528]
[1730806507415,4.94611898,2442.2,2441.9,0.04957528]
[1730806508049,4.09486,2442.1,2441.9,0.04957528]
[1730806508918,4.09486,2442.1,2441.7,4.09544]
[1730806509117,4.09486,2442.1,2442.0,0.04953356]
[1730806509313,5.45045154,2442.1,2441.7,4.960275]
[1730806509548,5.45045154,2442.1,2442.0,0.04953356]
[1730806509815,5.45045154,2442.1,2442.0,0.05973968]
[1730806510041,5.45045154,2442.1,2441.7,4.960275]
[1730806510257,5.45045154,2442.1,2442.0,0.05973968]
[1730806510429,5.45045154,2442.1,2441.8,0.5417375]
[1730806510632,5.45045154,2442.1,2442.0,0.05973968]
[1730806510857,5.45045154,2442.1,2441.8,0.5417375]
[1730806511198,5.45045154,2442.1,2442.0,0.05973968]
[1730806511364,5.45045154,2442.1,2441.9,0.05979068]
[1730806512157,4.095,2442.0,2441.9,0.05979068]
[1730806512632,4.095,2442.0,2441.7,0.864835]
[1730806512830,4.095,2442.0,2441.8,0.8417515]
[1730806513035,1.24384246,2442.7,2442.3,4.09443]
[1730806513233,0.01,2442.8,2442.3,5.44994154]
[1730806513431,4.10366,2442.8,2442.3,4.09447]
[1730806513632,0.08044898,2442.7,2442.2,4.09466]
[1730806513836,4.10405,2442.6,2442.1,4.55191]
[1730806514031,0.01,2442.6,2442.2,4.09464]
[1730806514633,0.01,2442.6,2442.2,4.09465]
[1730806515248,4.10362,2442.9,2442.4,4.09426]
[1730806515449,4.09372,2442.8,2442.4,4.09426]
[1730806515677,4.17416898,2442.8,2442.4,4.09426]
[1730806515879,4.09372,2442.8,2442.4,4.09426]
[1730806516209,0.8258,2442.9,2442.4,4.09419]
[1730806516349,0.09044898,2442.9,2442.5,4.09401]
[1730806516678,0.01,2442.9,2442.5,4.09401]
[1730806516877,0.01,2442.9,2442.6,4.09396]
[1730806517254,4.18363898,2443.1,2442.6,4.09396]
[1730806517465,0.01,2442.9,2442.6,4.09396]
[1730806517668,0.09044898,2443.1,2442.7,4.912507]
[1730806517982,0.01,2443.1,2442.7,5.369607]
[1730806518180,4.09333,2443.0,2442.7,1.275897]
[1730806518387,4.09333,2443.0,2442.7,0.818797]
[1730806518756,4.17377898,2443.0,2442.7,0.818797]
[1730806518957,4.17377898,2443.0,2442.5,4.55113]
[1730806520302,0.8031,2442.9,2442.5,4.09403]
[1730806520463,6.26228154,2442.9,2442.3,0.4571]
[1730806520663,4.09384,2442.7,2442.3,4.849541]
[1730806520908,4.09384,2442.7,2442.3,0.755161]
[1730806521258,4.17428898,2442.7,2442.2,7.09451]
[1730806521705,4.17428898,2442.7,2442.2,11.18909]
[1730806521885,4.17428898,2442.7,2442.2,7.09451]
[1730806522086,4.17428898,2442.7,2442.2,11.18905]
[1730806522289,4.17428898,2442.7,2442.2,7.09451]
[1730806522526,4.094,2442.6,2442.2,8.259161]
[1730806523055,4.17437898,2442.7,2442.2,8.259161]
[1730806523376,4.09402,2442.6,2442.2,8.259161]
[1730806523573,8.18786,2442.7,2442.2,12.353761]
[1730806523784,4.094,2442.6,2442.2,8.259161]
[1730806523960,0.7908,2442.5,2442.2,4.164651]
[1730806524760,4.88497,2442.5,2442.2,4.164651]
[1730806525066,4.17479898,2442.4,2441.9,4.5522]
[1730806525257,0.01,2442.3,2441.9,4.5522]
[1730806525496,0.01,2442.3,2441.9,8.64728]
[1730806525657,0.01,2442.3,2441.9,4.55218]
[1730806525865,0.01,2442.3,2442.1,4.09482]
[1730806526064,0.01,2442.3,2442.0,4.63438315]
[1730806527342,0.01,2442.3,2441.9,0.4571]
[1730806527551,0.01,2442.3,2441.8,4.09533]
[1730806527552,0.822,2442.2,2441.8,4.09533]
[1730806527750,0.822,2442.2,2441.9,4.09508]
[1730806527905,0.01,2442.3,2442.0,4.09497]
[1730806528106,0.01,2442.3,2441.9,4.09508]
[1730806528349,0.01,2442.3,2441.9,5.0463175]
[1730806528811,0.01,2442.3,2441.9,5.0463075]
[1730806529139,0.01,2442.3,2442.0,4.09498]
[1730806529298,4.8825,2442.4,2442.0,4.09498]
[1730806529502,0.01,2442.3,2442.0,4.09498]
[1730806529697,0.01,2442.3,2442.0,4.59960175]
[1730806529940,0.01,2442.3,2442.0,0.50462175]
[1730806531598,4.1045,2442.3,2442.0,0.50462175]
[1730806532216,4.1045,2442.3,2442.1,0.18868512]
[1730806532524,0.01,2442.3,2442.1,0.18868512]
[1730806532729,4.10451,2442.3,2442.1,0.18868512]
[1730806533521,4.09466,2442.2,2442.1,0.18868512]
[1730806533724,4.10453,2442.3,2442.1,0.18868512]
[1730806534210,0.01,2442.3,2442.0,4.09498]
[1730806534551,0.01,2442.3,2442.1,0.1889464]
[1730806535349,4.10453,2442.3,2442.1,0.1889464]
[1730806535804,0.01,2442.3,2442.1,0.1889464]
[1730806536823,4.1045,2442.3,2442.1,0.1889464]
[1730806537341,0.01,2442.3,2442.1,0.1889464]
[1730806537521,4.1046,2442.3,2442.1,1.10875544]
[1730806537704,4.1046,2442.3,2442.1,0.1889464]
[1730806538043,4.1046,2442.3,2442.2,0.18893479]
[1730806538646,4.1046,2442.3,2442.2,0.18892636]
[1730806539024,4.1046,2442.3,2441.8,8.19059]
[1730806539217,4.18504898,2442.3,2441.9,1.05383981]
[1730806539550,4.09467,2442.2,2441.9,1.05383981]
[1730806540434,4.09467,2442.2,2441.9,0.18907081]
[1730806540821,4.09491,2442.1,2441.9,0.18907081]
[1730806541067,0.91544898,2442.0,2441.3,0.78719857]
[1730806541412,0.91544898,2442.0,2441.4,4.096]
[1730806541413,4.09541,2441.8,2441.4,4.096]
[1730806541565,4.09541,2441.8,2441.5,0.89792786]
[1730806541725,4.09525,2441.9,2441.5,4.99369786]
[1730806542955,4.09525,2441.9,2441.5,0.89792786]
[1730806543175,4.09539,2441.8,2441.5,0.89792786]
[1730806543464,8.19051,2441.9,2441.6,0.49939279]
[1730806543628,4.09525,2441.9,2441.6,0.49939279]
[1730806544020,4.09535,2441.8,2441.6,0.49939279]
[1730806544422,4.0952,2441.9,2441.6,0.49939279]
[1730806544925,0.91544898,2442.0,2441.6,0.49939279]
[1730806545126,0.01,2442.0,2441.7,5.01197128]
[1730806545639,0.7904,2442.2,2441.7,5.01197128]
[1730806545640,0.8004,2442.2,2441.7,5.01197128]
[1730806545828,4.89508,2442.2,2441.8,4.09527]
[1730806546024,4.17527898,2442.1,2441.7,5.01197128]
[1730806546770,4.095,2442.0,2441.7,0.91662128]
[1730806547185,4.095,2442.0,2441.7,3.91662128]
[1730806547770,4.095,2442.0,2441.7,0.45952128]
[1730806547961,4.095,2442.0,2441.6,4.0956]
[1730806549738,8.19015,2442.0,2441.7,0.1894651]
[1730806550174,8.19015,2442.0,2441.5,4.55278]
[1730806550333,4.09517,2441.9,2441.8,0.18942818]
[1730806550838,4.09517,2441.9,2441.5,4.55278]
[1730806551040,4.09517,2441.9,2441.6,1.05438102]
[1730806552357,4.09507,2442.0,2441.6,1.05438102]
[1730806552548,4.09507,2442.0,2441.6,5.15003102]
[1730806553674,4.09527,2441.9,2441.6,1.05438102]
[1730806557795,4.10507,2442.0,2441.6,5.15003102]
[1730806557954,4.17536898,2442.1,2441.8,0.4571]
[1730806558295,4.89515,2442.2,2441.9,4.28448127]
[1730806558296,0.01,2442.2,2441.9,4.28448127]
[1730806558591,4.10467,2442.2,2441.9,0.18939127]
[1730806558802,0.01,2442.2,2441.9,4.28445127]
[1730806558954,0.01,2442.2,2442.0,0.88368213]
[1730806559356,0.01,2442.2,2442.1,0.18935119]
[1730806559879,4.10466,2442.2,2442.1,0.18935119]
[1730806560521,4.10466,2442.2,2441.8,0.4571]
[1730806560847,4.10471,2442.2,2441.9,0.34859151]
[1730806561138,4.09491,2442.1,2442.0,0.34855418]
[1730806561336,4.09491,2442.1,2441.8,0.4571]
[1730806561541,4.09479,2442.2,2441.9,0.3485718]
[1730806561707,4.17523898,2442.2,2441.8,4.55241]
[1730806561914,4.17523898,2442.2,2441.9,1.21334562]
[1730806562113,4.17523898,2442.2,2441.9,0.864788]
[1730806562346,8.18962,2442.2,2441.9,0.864788]
[1730806562801,4.09479,2442.2,2442.0,0.34855824]
[1730806563006,4.09483,2442.1,2441.8,0.4571]
[1730806563640,4.09483,2442.1,2441.9,0.34857956]
[1730806563844,4.09483,2442.1,2441.7,7.09543]
[1730806564069,0.8124,2442.0,2441.8,0.34859126]
[1730806564253,0.8124,2442.0,2441.9,0.34859126]
[1730806564456,4.09483,2442.1,2441.9,0.34859126]
[1730806564769,4.09483,2442.1,2441.9,0.1895262]
[1730806565132,4.09483,2442.1,2441.7,4.09546]
[1730806565332,4.09483,2442.1,2442.0,0.18948929]
[1730806565533,4.17527898,2442.1,2441.7,4.09546]
[1730806565762,4.17527898,2442.1,2442.0,0.18948929]
[1730806565956,4.17527898,2442.1,2441.7,4.09546]
[1730806566258,4.17527898,2442.1,2441.8,0.34861882]
[1730806566454,4.17527898,2442.1,2441.9,0.34861882]
[1730806566676,4.17527898,2442.1,2441.8,0.18956311]
[1730806566969,4.09483,2442.1,2442.0,0.18948929]
[1730806567175,4.09483,2442.1,2441.9,0.1895262]
[1730806567333,4.095,2442.0,2441.6,4.55275]
[1730806567539,4.095,2442.0,2441.7,0.34866503]
[1730806567737,4.095,2442.0,2441.8,0.34866503]
[1730806567976,4.095,2442.0,2441.6,5.55302502]
[1730806568174,4.17544898,2442.0,2441.7,0.34862753]
[1730806568364,4.09517,2441.9,2441.8,0.34862753]
[1730806568746,4.09504,2442.0,2441.8,0.34862753]
[1730806568939,4.09504,2442.0,2441.6,5.55302502]
[1730806569269,4.09504,2442.0,2441.7,0.34866289]
[1730806569471,4.09504,2442.0,2441.8,0.34866289]
[1730806569677,8.19013,2442.0,2441.6,5.55302502]
[1730806569882,8.19013,2442.0,2441.7,0.34869158]
[1730806570170,8.19013,2442.0,2441.8,0.34869158]
[1730806570374,4.09504,2442.0,2441.6,5.55302502]
[1730806570570,4.17548898,2442.0,2441.7,0.34870616]
[1730806570781,4.17548898,2442.0,2441.8,0.34870616]
[1730806571083,4.09485,2442.1,2441.7,4.09549]
[1730806571238,4.09485,2442.1,2441.8,0.90397922]
[1730806571474,4.09485,2442.1,2441.9,0.34869272]
[1730806571676,4.09485,2442.1,2441.8,0.5552865]
[1730806571928,4.09485,2442.1,2441.9,0.34868333]
[1730806572103,4.17529898,2442.1,2441.7,4.09541]
[1730806572308,4.17529898,2442.1,2441.8,0.3486966]
[1730806572513,4.17529898,2442.1,2441.9,0.3486966]
[1730806572818,4.17529898,2442.1,2441.7,5.0602565]
[1730806572970,4.17529898,2442.1,2441.8,0.348726]
[1730806573171,4.17529898,2442.1,2441.9,0.348726]
[1730806573383,4.17529898,2442.1,2441.7,5.0602565]
[1730806573588,4.17529898,2442.1,2441.8,0.34875634]
[1730806573801,4.17529898,2442.1,2441.9,0.34875634]
[1730806574004,4.17529898,2442.1,2441.7,5.0602565]
[1730806574513,4.17529898,2442.1,2441.8,0.34875895]
[1730806574709,4.17529898,2442.1,2441.9,0.34875895]
[1730806574898,4.17529898,2442.1,2441.7,5.0602565]
[1730806575103,4.17529898,2442.1,2441.8,1.00056694]
[1730806575318,4.095,2442.0,2441.9,0.34880379]
[1730806575707,5.38460434,2442.0,2441.9,0.34880379]
[1730806575930,4.84541,2441.9,2441.7,0.34884786]
[1730806576103,4.84541,2441.9,2441.4,4.09594]
[1730806576104,5.46558206,2441.8,2441.4,4.09594]
[1730806576299,5.38513308,2441.8,2441.5,0.90694227]
[1730806576505,5.38513308,2441.8,2441.6,0.34878035]
[1730806576851,4.0955,2441.7,2441.5,0.55806914]
[1730806577144,5.38513308,2441.8,2441.6,0.34878966]
[1730806577339,1.28973308,2441.8,2441.7,0.34878966]
[1730806577639,5.38507308,2441.8,2441.7,0.34873993]
[1730806577858,5.46552206,2441.8,2441.7,0.34873993]
[1730806577998,4.09591,2441.5,2441.3,0.16703267]
[1730806578200,4.09591,2441.5,2441.1,0.4571]
[1730806578201,4.84601,2441.5,2441.4,0.34879768]
[1730806578851,4.92645898,2441.5,2441.4,0.34879768]
[1730806579214,4.09609,2441.4,2441.0,3.0]
[1730806579529,0.7501,2441.5,2441.1,5.00288511]
[1730806579705,9.49127841,2441.6,2441.2,6.26001562]
[1730806579902,9.49125841,2441.6,2441.3,0.34860426]
[1730806580228,4.09584,2441.5,2441.3,0.18337505]
[1730806580434,4.09584,2441.5,2441.2,1.25738851]
[1730806580606,5.39541841,2441.6,2441.3,0.53189497]
[1730806580800,5.39541841,2441.6,2441.3,1.18976957]
[1730806581614,5.38541841,2441.6,2441.3,1.18976957]
[1730806581829,5.38523841,2441.7,2441.3,5.28582957]
[1730806582006,5.38523841,2441.7,2441.4,0.34843913]
[1730806582209,5.38523841,2441.7,2441.3,5.28582957]
[1730806582407,5.38523841,2441.7,2441.4,0.83765993]
[1730806583705,1.28970841,2441.7,2441.4,4.93357993]
[1730806583907,2.10610841,2441.8,2441.5,4.4441]
[1730806584103,1.28970841,2441.8,2441.5,4.55292]
[1730806584339,1.28970841,2441.9,2441.6,4.81798227]
[1730806584542,1.37015739,2441.9,2441.6,4.81798227]
[1730806585550,5.46534739,2441.9,2441.6,0.72232227]
[1730806586052,4.17563898,2441.9,2441.6,0.72232227]
[1730806586251,5.46534739,2441.9,2441.6,0.72232227]
[1730806586934,1.28970841,2441.9,2441.7,0.52752523]
[1730806587247,1.28970841,2442.1,2441.8,4.72969277]
[1730806587848,6.67099309,2442.2,2441.8,4.72969277]
[1730806587849,6.24105739,2442.2,2441.8,4.72969277]
[1730806588943,6.24105739,2442.2,2441.9,0.34807118]
[1730806589158,1.38015739,2442.2,2441.8,0.63436277]
[1730806589335,0.01,2442.2,2441.9,8.53820644]
[1730806589519,0.01,2442.2,2442.0,4.99453064]
[1730806589841,0.01,2442.2,2442.0,1.07671959]
[1730806590042,4.10467,2442.2,2442.0,0.17718895]
[1730806590261,5.39437841,2442.2,2441.8,4.55242]
[1730806590453,4.09484,2442.1,2441.9,0.17722586]
[1730806590641,4.96248898,2442.1,2441.9,0.17722586]
[1730806590848,4.09507,2442.0,2441.6,4.6526483]
[1730806591048,4.17551898,2442.0,2441.7,0.52550603]
[1730806591250,1.28970841,2442.0,2441.7,0.63439968]
[1730806591494,6.25226739,2442.1,2441.7,0.63439968]
[1730806591759,4.09507,2442.0,2441.7,0.63439968]
[1730806592136,5.38477841,2442.0,2441.7,0.63439968]
[1730806592330,4.10526,2441.9,2441.7,0.17729968]
[1730806592856,4.10526,2441.9,2441.8,0.17726277]
[1730806593048,4.10526,2441.9,2441.6,0.34830555]
[1730806593225,4.10526,2441.9,2441.7,0.17729968]
[1730806593429,4.10526,2441.9,2441.5,4.09581]
[1730806593647,4.10526,2441.9,2441.6,0.52565678]
[1730806593986,4.10526,2441.9,2441.6,0.1773366]
[1730806594258,4.18570898,2441.9,2441.6,0.1773366]
[1730806594425,4.09541,2441.8,2441.6,0.1773366]
[1730806595065,4.10526,2441.9,2441.6,0.1773366]
[1730806595235,4.09535,2441.8,2441.6,0.1773366]
[1730806595626,4.8622,2441.7,2441.6,0.1773366]
[1730806595926,4.8622,2441.7,2441.2,4.5533]
[1730806595927,4.09575,2441.6,2441.3,0.34841521]
[1730806596125,4.09575,2441.6,2441.4,0.34841521]
[1730806596423,4.8622,2441.7,2441.2,4.5533]
[1730806596625,4.09587,2441.5,2441.3,0.34846271]
[1730806596829,4.09602,2441.4,2441.0,5.27826319]
[1730806597140,4.09602,2441.4,2441.1,3.90602816]
[1730806597326,4.09602,2441.4,2441.2,0.3484838]
[1730806597526,4.09602,2441.4,2441.3,0.3484838]
[1730806598085,4.10601,2441.4,2441.3,0.3484838]
[1730806598300,4.10601,2441.4,2441.0,4.82110757]
[1730806598301,0.01,2441.4,2441.0,4.82110757]
[1730806598589,4.10569,2441.6,2441.2,4.55344]
[1730806598752,0.01,2441.4,2441.3,0.34843591]
[1730806601653,4.10569,2441.6,2441.3,0.34843591]
[1730806601849,0.09044898,2441.8,2441.2,0.4571]
[1730806602071,0.01,2441.6,2441.3,4.44441636]
[1730806602265,0.01,2441.6,2441.4,0.89978264]
[1730806602484,0.01,2441.8,2441.4,0.89978264]
[1730806602696,0.09044898,2441.8,2441.4,4.99569264]
[1730806602990,4.10535,2441.8,2441.4,4.99569264]
[1730806603291,4.10535,2441.8,2441.5,0.34837214]
[1730806603454,4.10535,2441.8,2441.4,4.99569264]
[1730806603795,4.10535,2441.8,2441.5,4.99950649]
[1730806603796,0.01,2441.8,2441.5,4.99950649]
[1730806604034,0.01,2441.8,2441.5,0.55530446]
[1730806604152,4.10541,2441.8,2441.4,4.09598]
[1730806604347,4.10541,2441.8,2441.5,0.34841542]
[1730806604588,4.10541,2441.8,2441.4,4.09593]
[1730806604795,4.10541,2441.8,2441.5,0.34840472]
[1730806605088,4.10541,2441.8,2441.4,4.09593]
[1730806605313,4.10541,2441.8,2441.5,0.81377621]
[1730806605453,4.10541,2441.8,2441.5,0.46533483]
[1730806608414,4.18585898,2441.8,2441.4,4.09593]
[1730806608553,4.18585898,2441.8,2441.5,0.34837093]
[1730806608749,4.18585898,2441.8,2441.4,4.09593]
[1730806608952,4.18585898,2441.8,2441.5,0.34837805]
[1730806609146,4.18585898,2441.8,2441.4,4.09593]
[1730806609350,4.18585898,2441.8,2441.5,0.3483946]
[1730806609591,4.18585898,2441.8,2441.4,5.31658893]
[1730806609784,4.18585898,2441.8,2441.6,0.17386738]
[1730806609988,4.18585898,2441.8,2441.5,0.1739043]
[1730806610192,4.18585898,2441.8,2441.7,0.17383046]
[1730806610395,4.18585898,2441.8,2441.6,0.17386738]
[1730806610607,4.0955,2441.7,2441.3,4.6535093]
[1730806610895,4.0955,2441.7,2441.4,1.56905682]
[1730806611100,4.0955,2441.7,2441.4,1.22067893]
[1730806611402,4.10541,2441.8,2441.5,0.34839486]
[1730806611572,4.10541,2441.8,2441.4,5.31659893]
[1730806611898,0.01,2441.8,2441.5,4.44419893]
[1730806612104,0.08044898,2441.9,2441.7,4.55247]
[1730806612277,0.01,2442.0,2441.8,0.34836893]
[1730806612595,4.10502,2442.0,2441.7,0.4571]
[1730806612797,4.10502,2442.0,2441.8,0.34828753]
[1730806612997,4.10502,2442.0,2441.7,0.4571]
[1730806613209,0.01,2442.0,2441.8,0.96246288]
[1730806613363,0.01,2442.0,2441.8,0.61418223]
[1730806613700,4.93654898,2442.2,2441.8,4.70950223]
[1730806614372,4.09491,2442.1,2441.8,0.61418223]
[1730806614916,4.8561,2442.2,2441.8,4.70951223]
[1730806615208,4.93654898,2442.2,2441.9,0.92620722]
[1730806615701,4.09484,2442.1,2441.9,0.92620722]
[1730806615865,4.1047,2442.2,2441.9,0.92620722]
[1730806616065,4.1047,2442.2,2441.8,4.17716795]
[1730806616386,4.1047,2442.2,2441.7,4.55252]
[1730806616649,4.09491,2442.1,2441.8,0.3481867]
[1730806616892,4.09491,2442.1,2441.7,4.55252]
[1730806617087,4.09491,2442.1,2441.8,0.34819445]
[1730806617396,4.09491,2442.1,2441.8,0.84578172]
[1730806619161,4.09491,2442.1,2441.9,0.34818792]
[1730806619366,4.09491,2442.1,2441.8,0.84578172]
[1730806619562,4.09491,2442.1,2441.9,0.34818149]
[1730806619761,4.09491,2442.1,2441.8,0.84578172]
[1730806620002,4.09491,2442.1,2441.9,0.53982317]
[1730806620422,4.18514898,2442.2,2441.9,0.53982317]
[1730806620732,4.095,2442.0,2441.8,0.84578172]
[1730806620896,4.09584,2441.5,2441.1,4.95216386]
[1730806621230,4.93752898,2441.9,2441.4,7.5531]
[1730806621379,4.85708,2441.9,2441.5,4.0957]
[1730806621586,4.85708,2441.9,2441.6,1.51321599]
[1730806621783,8.95236,2441.9,2441.6,1.16488]
[1730806622129,4.85708,2441.9,2441.7,0.17326811]
[1730806624084,8.95234,2441.9,2441.7,0.17326811]
[1730806624287,4.85708,2441.9,2441.7,0.17326811]
[1730806624494,8.95236,2441.9,2441.7,0.17326811]
[1730806624724,4.85708,2441.9,2441.7,0.17326811]
[1730806625626,4.09496,2442.1,2441.8,4.44357224]
[1730806625627,0.01,2442.1,2441.8,4.44357224]
[1730806625783,0.01,2442.1,2441.9,4.44338343]
[1730806625983,0.01,2442.1,2441.9,4.26834428]
[1730806626399,7.4,2442.4,2441.9,4.26834428]
[1730806626400,0.01,2442.4,2442.1,4.09471]
[1730806626595,0.01,2442.4,2442.1,5.23697113]
[1730806626908,0.01,2442.4,2442.2,0.17326821]
[1730806627077,4.88701,2442.5,2442.2,0.17326821]
[1730806627285,0.01,2442.4,2442.2,0.17326821]
[1730806627508,0.7927,2442.5,2442.2,4.26785821]
[1730806627685,2.50358798,2442.7,2442.3,4.70913864]
[1730806627881,4.09356,2442.9,2442.5,4.55115]
[1730806628112,4.09356,2442.9,2442.6,0.17296956]
[1730806628301,4.10369,2442.8,2442.6,0.17296956]
[1730806628482,0.01,2442.8,2442.6,0.17296956]
[1730806628714,4.10367,2442.8,2442.6,0.17296956]
[1730806629431,4.10336,2443.0,2442.6,0.17296956]
[1730806629588,4.18380898,2443.0,2442.6,4.73933152]
[1730806629793,4.09354,2442.9,2442.6,0.64540152]
[1730806631183,0.01,2443.0,2442.6,4.73937152]
[1730806631387,4.53097722,2443.2,2442.8,4.09361]
[1730806631638,0.43796722,2443.2,2442.8,4.57571849]
[1730806631880,4.53103722,2443.2,2442.9,0.62936323]
[1730806632639,0.43796722,2443.2,2442.9,0.62936323]
[1730806632839,4.53095722,2443.2,2442.9,0.62936323]
[1730806633376,4.09321,2443.1,2442.9,0.17226323]
[1730806635277,4.09321,2443.1,2442.9,0.6927904]
[1730806635508,4.09332,2443.0,2442.9,0.17226323]
[1730806635713,4.09332,2443.0,2442.7,0.4571]
[1730806636011,4.93386898,2443.0,2442.9,0.17156693]
[1730806636179,4.09349,2442.9,2442.8,0.17160382]
[1730806636501,4.09349,2442.9,2442.6,0.47243196]
[1730806636712,4.09349,2442.9,2442.7,0.8023562]
[1730806637007,4.09349,2442.9,2442.5,0.4571]
[1730806637173,4.09371,2442.8,2442.5,0.4571]
[1730806637872,4.86347,2443.0,2442.5,0.4571]
[1730806638211,4.09351,2442.9,2442.5,4.55126]
[1730806638426,8.1871,2442.9,2442.5,0.4571]
[1730806638569,4.09351,2442.9,2442.6,0.455135]
[1730806639480,4.09351,2442.9,2442.7,0.17140588]
[1730806640784,4.94389898,2443.0,2442.7,0.17140588]
[1730806641098,4.93389898,2443.0,2442.7,0.17140588]
[1730806641287,4.85345,2443.0,2442.7,0.17140588]
[1730806641469,4.94389898,2443.0,2442.7,1.05304947]
[1730806641668,4.93389898,2443.0,2442.7,1.05304947]
[1730806642069,4.94389898,2443.0,2442.7,1.05304947]
[1730806642594,4.86345,2443.0,2442.7,1.05304947]
[1730806642800,4.94389898,2443.0,2442.7,1.05304947]
[1730806643193,8.95691,2443.0,2442.7,0.17140588]
[1730806643594,4.86345,2443.0,2442.6,4.09398]
[1730806643823,8.95694,2443.0,2442.8,0.17145286]
[1730806644123,4.09351,2442.9,2442.5,7.55123]
[1730806645416,0.85054898,2443.0,2442.5,7.55123]
[1730806645622,4.94394898,2443.0,2442.6,4.849113]
[1730806645980,4.94394898,2443.0,2442.6,0.755123]
[1730806646181,4.09351,2442.9,2442.6,0.755123]
[1730806646639,4.8635,2443.0,2442.6,0.755123]
[1730806646920,4.09356,2442.9,2442.6,0.755123]
[1730806647079,4.09356,2442.9,2442.7,0.8306303]
[1730806647901,4.09366,2442.8,2442.7,0.8306303]
[1730806648216,4.09366,2442.8,2442.5,0.4571]
[1730806649115,4.09352,2442.9,2442.5,4.55121]
[1730806649694,4.94395898,2443.0,2442.5,4.55121]
[1730806649907,4.09356,2442.9,2442.5,4.55121]
[1730806650592,4.09376,2442.8,2442.5,0.4571]
[1730806650899,4.09403,2442.6,2442.3,3.53282311]
[1730806652298,4.09376,2442.8,2442.3,3.53282311]
[1730806652486,4.09389,2442.7,2442.3,7.62731311]
[1730806653799,4.09401,2442.6,2442.3,0.53282311]
[1730806654126,4.09401,2442.6,2442.3,0.88033815]
[1730806654542,4.09401,2442.6,2442.4,0.17154172]
[1730806654834,8.18781,2442.7,2442.4,0.51924107]
[1730806654986,4.09389,2442.7,2442.4,0.17154172]
[1730806655182,4.09389,2442.7,2442.4,0.51924222]
[1730806655387,4.09401,2442.6,2442.4,0.17154172]
[1730806656629,4.09401,2442.6,2442.5,0.34816273]
[1730806656988,4.0939,2442.7,2442.5,0.51977655]
[1730806657190,4.0939,2442.7,2442.5,0.17161382]
[1730806657695,8.18788,2442.7,2442.5,0.17161382]
[1730806657893,8.18788,2442.7,2442.3,3.53282311]
[1730806658089,8.18788,2442.7,2442.4,0.34828898]
[1730806658302,0.7937,2442.9,2442.6,4.09397]
[1730806658488,4.90016,2443.1,2442.7,0.51974834]
[1730806658688,4.09319,2443.1,2442.8,0.80525921]
[1730806658991,4.17387898,2443.0,2442.9,0.17158368]
[1730806659216,4.18387898,2443.0,2442.6,1.01416031]
[1730806659418,4.18387898,2443.0,2442.9,0.17158368]
[1730806659626,4.18387898,2443.0,2442.6,5.10814031]
[1730806659830,4.18387898,2443.0,2442.9,0.17158368]
[1730806659993,4.18387898,2443.0,2442.6,5.10814031]
[1730806660195,4.18387898,2443.0,2442.9,0.17158368]
[1730806660527,0.01,2443.0,2442.7,4.0938]
[1730806660714,4.18349898,2443.2,2442.9,0.17158368]
[1730806660894,4.18349898,2443.2,2442.7,4.65082266]
[1730806660895,0.01,2443.0,2442.7,4.65082266]
[1730806661092,0.01,2443.0,2442.8,0.34814742]
[1730806661330,0.01,2443.0,2442.7,4.0938]
[1730806661532,0.01,2443.0,2442.8,0.34814002]
[1730806661757,0.01,2443.0,2442.7,4.0938]
[1730806661935,0.01,2443.0,2442.8,0.34814273]
[1730806662105,0.01,2443.0,2442.7,4.0938]
[1730806662299,0.01,2443.0,2442.8,0.34812295]
[1730806662525,0.01,2443.0,2442.7,5.10592076]
[1730806662718,0.01,2443.0,2442.8,0.34814384]
[1730806662922,0.01,2443.0,2442.7,4.54889]
[1730806663118,0.01,2443.0,2442.8,0.3481594]
[1730806663317,0.01,2443.0,2442.7,4.54889]
[1730806663318,4.09321,2443.1,2442.7,9.28160134]
[1730806663622,4.09321,2443.1,2442.8,0.34818181]
[1730806663623,0.01,2443.0,2442.8,0.34818181]
[1730806663822,0.01,2443.0,2442.7,4.54884]
[1730806664024,0.01,2443.0,2442.8,0.34818292]
[1730806664227,0.01,2443.0,2442.7,5.10590522]
[1730806664397,6.70733888,2443.3,2442.9,4.09343]